bitfinex-derivatives/quotes_BNBF0:USTF0_20250309
["timestamp","ask_amount","ask_price","bid_price","bid_amount"]
[1741542640933,1.028,556.52,555.91,0.30111243]
[1741542641133,1.028,556.52,555.92,0.30111243]
[1741542641432,1.028,556.52,555.93,0.30111243]
[1741542641633,1.028,556.52,555.84,0.30111243]
[1741542641832,1.028,556.52,555.85,0.30111243]
[1741542642033,1.028,556.52,555.86,0.30111243]
[1741542642232,1.028,556.52,555.87,0.30111243]
[1741542642428,1.028,556.52,555.88,0.30111944]
[1741542642633,1.028,556.52,555.89,0.30111944]
[1741542642929,1.028,556.52,555.9,0.30111944]
[1741542643134,1.028,556.52,555.91,0.30111944]
[1741542643337,1.028,556.52,555.84,0.30111944]
[1741542643534,1.028,556.52,555.85,0.30111944]
[1741542643733,1.028,556.52,555.84,0.30111944]
[1741542644132,1.028,556.52,555.83,0.35982224]
[1741542644329,1.028,556.52,555.84,0.30110109]
[1741542645636,1.028,556.52,555.85,0.3598093]
[1741542645836,1.028,556.52,555.86,0.30110109]
[1741542646235,1.028,556.52,555.87,0.35979635]
[1741542646436,1.028,556.52,555.88,0.30110109]
[1741542647233,0.753,556.51,555.89,0.35978341]
[1741542647539,0.753,556.51,555.9,0.30110109]
[1741542647945,0.753,556.51,555.91,0.30110109]
[1741542648247,0.753,556.51,555.92,0.30110109]
[1741542648440,0.753,556.51,555.93,0.30110109]
[1741542648749,0.753,556.51,555.94,0.66085214]
[1741542648949,0.753,556.51,555.95,0.66084567]
[1741542649146,0.753,556.51,555.52,1.329858]
[1741542649147,0.753,556.51,555.96,0.6608392]
[1741542649452,0.753,556.51,555.97,0.66083273]
[1741542649644,0.753,556.51,555.98,0.66082625]
[1741542649849,0.753,556.51,555.99,0.66081978]
[1741542650041,0.753,556.51,556.0,0.66081332]
[1741542650243,0.753,556.51,556.01,0.66080685]
[1741542650441,0.753,556.51,556.01,0.35970576]
[1741542650648,0.753,556.51,556.02,0.30103759]
[1741542651142,0.753,556.51,556.03,0.35969282]
[1741542651454,0.753,556.51,556.04,0.30103759]
[1741542651650,0.753,556.51,556.05,0.66069688]
[1741542651848,0.753,556.51,556.06,0.66069041]
[1741542652057,0.753,556.51,556.07,0.66068394]
[1741542652348,0.753,556.51,556.08,0.66067748]
[1741542652555,0.753,556.51,556.09,0.66067101]
[1741542652845,0.753,556.51,556.1,0.66066454]
[1741542653051,0.753,556.51,556.11,0.66065807]
[1741542653244,0.753,556.51,556.12,0.66065161]
[1741542653550,0.753,556.51,556.13,0.66064514]
[1741542653748,0.753,556.51,556.14,0.66063867]
[1741542654056,0.753,556.51,556.15,0.66063221]
[1741542654255,0.753,556.51,556.16,0.301017]
[1741542654748,0.753,556.51,556.17,0.35960227]
[1741542654949,0.753,556.51,556.18,0.301017]
[1741542655146,0.753,556.51,556.19,0.35958934]
[1741542655347,0.753,556.51,556.2,0.301017]
[1741542655548,0.753,556.51,556.21,0.35957641]
[1741542656146,0.753,556.51,556.22,0.30110959]
[1741542656543,0.753,556.51,556.21,0.35957641]
[1741542656748,0.753,556.51,556.23,0.35956348]
[1741542659255,0.31287086,556.5,556.23,0.35956348]
[1741542660951,0.753,556.51,556.23,0.35956348]
[1741542661348,0.31288633,556.49,555.59,1.329858]
[1741542661573,0.31288633,556.49,555.61,0.35996472]
[1741542661850,0.31288633,556.49,555.62,0.30126317]
[1741542663252,0.31288633,556.49,555.63,0.30126317]
[1741542663558,0.31288633,556.49,555.64,0.30126317]
[1741542663863,0.67,556.48,555.61,0.35996472]
[1741542664059,0.67,556.48,555.62,0.3012342]
[1741542664254,0.67,556.48,555.63,0.3012342]
[1741542664453,0.682,556.47,555.64,0.3012342]
[1741542664659,0.682,556.47,555.65,0.3012342]
[1741542664851,0.682,556.47,555.66,0.3012342]
[1741542665157,0.682,556.47,555.67,0.3012342]
[1741542665364,0.682,556.47,555.68,0.3012342]
[1741542665659,0.682,556.47,555.69,0.3012342]
[1741542665858,0.682,556.47,555.7,0.3012342]
[1741542666166,0.682,556.47,555.71,0.3012342]
[1741542666359,0.682,556.47,555.62,0.3012342]
[1741542666659,1.149,556.46,555.63,0.3012342]
[1741542666861,1.149,556.46,555.62,0.3012342]
[1741542667357,0.3128793,556.45,555.61,0.35996472]
[1741542667558,0.3128793,556.45,555.62,0.30129515]
[1741542668057,0.3128793,556.45,555.64,0.35994528]
[1741542668263,0.3128793,556.45,555.65,0.30129515]
[1741542669352,1.2908793,556.45,555.66,0.35993233]
[1741542669659,1.2908793,556.45,555.67,0.30128965]
[1741542670055,1.4246645,556.44,555.67,0.30128965]
[1741542670262,1.73755083,556.44,555.67,0.30128965]
[1741542670559,0.31288633,556.44,555.67,0.30128965]
[1741542672968,2.40449681,556.45,555.67,0.30128965]
[1741542673153,0.31292431,556.43,555.67,0.30128965]
[1741542673561,0.31292431,556.43,555.66,0.35993233]
[1741542673760,0.31292431,556.43,555.67,0.30137972]
[1741542674754,0.31292431,556.43,555.68,0.35991937]
[1741542674961,0.31292431,556.43,555.69,0.30135125]
[1741542676070,2.40410027,556.45,555.69,0.30135125]
[1741542676257,1.11423977,556.44,555.69,0.30135125]
[1741542676470,1.11423977,556.44,555.68,0.35991937]
[1741542676662,1.42610027,556.43,555.68,0.35991937]
[1741542676857,1.11423977,556.42,555.68,0.35991937]
[1741542677060,1.42610027,556.43,555.68,0.35991937]
[1741542677261,1.42610027,556.43,555.69,0.30147608]
[1741542677262,2.85244549,556.42,555.69,0.30147608]
[1741542677461,4.63376431,556.42,555.69,0.30147608]
[1741542677660,6.09675937,556.41,555.69,0.30147608]
[1741542677959,8.91613391,556.4,555.68,0.35991937]
[1741542678155,5.20998885,556.39,555.68,0.35991937]
[1741542678360,1.75348742,556.33,555.68,0.35991937]
[1741542678559,4.6704956,556.32,555.68,0.35991937]
[1741542678761,5.20998885,556.31,555.68,0.35991937]
[1741542679068,5.20998885,556.3,555.68,0.35991937]
[1741542679299,5.20998885,556.29,555.68,0.35991937]
[1741542679459,1.0537047,556.18,555.68,0.35991937]
[1741542679763,1.0537047,556.16,554.97,1.329858]
[1741542679959,4.6704956,556.15,554.99,0.36036685]
[1741542680164,1.75348742,556.06,555.0,0.30168454]
[1741542680464,4.6704956,556.05,555.0,0.30168454]
[1741542680674,4.6704956,556.04,555.0,0.30168454]
[1741542680866,2.89464543,556.03,555.0,0.30168454]
[1741542681165,2.89464543,556.02,555.0,0.30168454]
[1741542681364,2.88485234,556.01,555.0,0.30168454]
[1741542681568,1.11332661,556.0,555.0,0.30168454]
[1741542681873,3.70614506,556.0,555.0,0.30168454]
[1741542682061,3.70614506,556.0,555.01,0.30168454]
[1741542682263,1.42610027,555.99,555.0,0.30168454]
[1741542682459,1.10501241,555.98,555.01,0.30168454]
[1741542682661,1.42610027,555.99,555.02,0.30168454]
[1741542682872,3.68855579,555.97,555.03,0.30168454]
[1741542683165,3.68855579,555.96,555.04,0.30168454]
[1741542683365,3.68855579,555.96,555.05,0.30168454]
[1741542683770,1.42610027,555.95,555.06,0.30168454]
[1741542683966,1.42610027,555.95,555.07,0.30168454]
[1741542684166,0.697,555.98,555.08,0.30168454]
[1741542684491,0.697,555.98,555.09,0.30168454]
[1741542684664,1.41259348,555.97,555.1,0.30168454]
[1741542684866,1.41259348,555.97,555.0,0.30168454]
[1741542685062,1.41259348,555.97,554.99,0.36036685]
[1741542685063,1.41259348,555.97,555.01,0.30168454]
[1741542685368,1.72576702,555.96,555.02,0.30168454]
[1741542685567,1.72576702,555.96,555.03,0.3015738]
[1741542685771,1.72576702,555.96,555.04,0.3015738]
[1741542685965,1.72576702,555.96,554.99,0.36036685]
[1741542685966,1.41259348,555.95,555.05,0.3015738]
[1741542686165,0.31317354,555.96,554.99,0.36036685]
[1741542686166,1.41259348,555.94,555.06,0.3015738]
[1741542686372,1.41259348,555.94,555.07,0.3015738]
[1741542686562,1.41259348,555.94,555.08,0.3015738]
[1741542686764,1.41259348,555.94,555.09,0.3015738]
[1741542686963,1.41259348,555.93,555.0,0.3015738]
[1741542687163,1.41259348,555.93,555.1,0.3015738]
[1741542687363,1.41259348,555.93,555.11,0.3015738]
[1741542687564,1.41259348,555.93,555.12,0.3015738]
[1741542687768,4.77103355,555.92,555.0,0.3015738]
[1741542687969,1.10213831,555.91,555.0,0.3015738]
[1741542688271,4.77092067,555.9,555.0,0.3015738]
[1741542688467,3.66889524,555.9,555.0,0.3015738]
[1741542688664,3.66889524,555.89,555.0,0.3015738]
[1741542688861,4.47189524,555.89,555.0,0.3015738]
[1741542689061,4.47189524,555.89,555.01,0.3015738]
[1741542689270,1.41259348,555.88,555.02,0.3015738]
[1741542689465,1.41259348,555.88,555.03,0.3015738]
[1741542689696,1.41259348,555.88,555.04,0.3015738]
[1741542689871,0.803,555.89,555.05,0.3015738]
[1741542690065,0.803,555.89,555.0,0.3015738]
[1741542690872,0.803,555.89,554.99,0.36036685]
[1741542691067,1.40844386,555.88,555.0,0.30159653]
[1741542691669,3.66020207,555.87,555.0,0.30159653]
[1741542692170,3.66020207,555.86,555.0,0.30159653]
[1741542692687,3.66020207,555.86,555.02,0.36034737]
[1741542692864,3.66020207,555.86,555.03,0.30159653]
[1741542693067,3.66020207,555.85,555.03,0.30159653]
[1741542693476,1.40844386,555.84,555.03,0.30159653]
[1741542693770,0.803,555.89,555.03,0.30159653]
[1741542694165,1.40596482,555.88,555.03,0.30159653]
[1741542694364,1.71918064,555.88,555.02,0.36034737]
[1741542694566,0.31321582,555.88,555.03,0.30164109]
[1741542696472,0.31321582,555.88,555.04,0.30163142]
[1741542696668,0.31321582,555.88,555.03,0.30163142]
[1741542696871,0.31321582,555.88,555.04,0.30163142]
[1741542697071,0.803,555.89,555.06,0.3603214]
[1741542697274,0.803,555.89,555.07,0.30163142]
[1741542697573,0.803,555.89,555.09,0.36030193]
[1741542697774,0.803,555.89,555.1,0.30163142]
[1741542697973,0.803,555.89,555.11,0.36028895]
[1741542698274,0.31319045,555.88,555.12,0.30163142]
[1741542698574,0.31319045,555.88,555.13,0.36027597]
[1741542698776,0.31319045,555.88,555.14,0.30163142]
[1741542699775,0.31319045,555.88,555.15,0.36026299]
[1741542700074,0.31319045,555.88,555.16,0.30163142]
[1741542700273,0.31319045,555.88,555.17,0.36025001]
[1741542700469,0.727,555.87,555.18,0.30163142]
[1741542700673,0.727,555.87,555.19,0.36023703]
[1741542700969,0.727,555.87,555.2,0.30163142]
[1741542701173,0.727,555.87,555.21,0.36022405]
[1741542701369,0.727,555.87,555.22,0.30163142]
[1741542701669,0.727,555.87,555.23,0.36021108]
[1741542701871,0.727,555.87,555.24,0.30163142]
[1741542702070,0.727,555.87,555.25,0.3601981]
[1741542702370,0.727,555.87,555.26,0.30163142]
[1741542702570,0.727,555.87,555.27,0.36018513]
[1741542702780,0.727,555.87,555.28,0.30163142]
[1741542703075,0.727,555.87,555.29,0.36017216]
[1741542703275,0.727,555.87,555.3,0.30163142]
[1741542703576,0.727,555.87,555.31,0.36015919]
[1741542703771,0.727,555.87,555.32,0.30163142]
[1741542704174,0.727,555.87,555.33,0.36014621]
[1741542704372,0.727,555.87,555.34,0.30163142]
[1741542704980,3.65551979,555.86,555.34,0.30163142]
[1741542705381,3.65551979,555.86,555.33,0.36014621]
[1741542705679,3.54587926,555.85,555.33,0.36014621]
[1741542705879,1.09866621,555.84,555.33,0.36014621]
[1741542706081,6.10273284,555.85,555.33,0.36014621]
[1741542706082,2.85687926,555.83,555.33,0.36014621]
[1741542706276,4.754186,555.82,555.33,0.36014621]
[1741542706477,2.85687926,555.81,555.33,0.36014621]
[1741542706783,3.39689757,555.8,554.52,1.329858]
[1741542707082,3.39689757,555.79,554.54,0.36065928]
[1741542707280,4.754186,555.78,554.55,0.30183523]
[1741542707475,2.85687926,555.77,554.55,0.30183523]
[1741542707780,1.09866621,555.76,554.55,0.30183523]
[1741542707981,1.09866621,555.75,554.55,0.30183523]
[1741542708183,1.09770718,555.74,554.55,0.30183523]
[1741542708383,4.75322697,555.73,554.55,0.30183523]
[1741542708586,1.09770718,555.72,554.55,0.30183523]
[1741542708781,1.09770718,555.71,554.55,0.30183523]
[1741542708982,1.09770718,555.7,554.55,0.30183523]
[1741542709386,3.65551979,555.71,554.55,0.30183523]
[1741542709581,3.96890484,555.69,554.56,0.30183523]
[1741542709882,1.40596915,555.68,554.57,0.30183523]
[1741542710184,1.40596915,555.68,554.58,0.30183523]
[1741542710381,1.40596915,555.68,554.54,0.36065928]
[1741542710382,1.40596915,555.68,554.55,0.30183523]
[1741542710588,1.40596915,555.67,554.56,0.30183523]
[1741542710777,1.40596915,555.67,554.55,0.30183523]
[1741542710979,1.40596915,555.66,554.56,0.3017965]
[1741542711185,1.40596915,555.66,554.57,0.3017965]
[1741542711384,1.40596915,555.66,554.58,0.3017965]
[1741542711580,1.40596915,555.66,554.59,0.3017965]
[1741542711786,1.40596915,555.65,554.6,0.3017965]
[1741542711986,1.40596915,555.65,554.61,0.3017965]
[1741542712183,1.40596915,555.65,554.62,0.3017965]
[1741542712385,1.71936126,555.64,554.55,0.3017965]
[1741542712586,1.71936126,555.64,554.56,0.3017965]
[1741542712781,1.40596915,555.63,554.55,0.3017965]
[1741542712992,1.09893892,555.62,554.56,0.3017965]
[1741542713189,1.09893892,555.61,554.55,0.3017965]
[1741542713388,1.09893892,555.6,554.56,0.3017965]
[1741542713586,4.75486222,555.59,554.57,0.3017965]
[1741542713791,2.85675824,555.58,554.55,0.3017965]
[1741542713991,1.09893892,555.57,554.56,0.3017965]
[1741542714196,1.09893892,555.56,554.55,0.3017965]
[1741542714384,1.09893892,555.55,554.56,0.3017965]
[1741542714586,1.09893892,555.55,554.54,0.36065928]
[1741542714587,1.09893892,555.54,554.57,0.3017965]
[1741542714784,1.09893892,555.53,554.55,0.3017965]
[1741542714984,1.09893892,555.52,554.55,0.3017965]
[1741542715188,1.09893892,555.51,554.55,0.3017965]
[1741542715394,1.09893892,555.5,554.55,0.3017965]
[1741542715585,1.09893892,555.49,554.55,0.3017965]
[1741542715796,1.09893892,555.48,554.55,0.3017965]
[1741542715994,1.09893892,555.47,554.55,0.3017965]
[1741542716185,1.09893892,555.46,554.55,0.3017965]
[1741542716387,0.669,555.47,554.55,0.3017965]
[1741542716888,4.2929233,555.45,554.55,0.3017965]
[1741542717114,1.09925302,555.44,554.55,0.3017965]
[1741542717293,1.09925302,555.43,554.55,0.3017965]
[1741542717594,1.09925302,555.42,554.55,0.3017965]
[1741542717796,1.09925302,555.41,554.55,0.3017965]
[1741542717998,3.6559233,555.4,554.55,0.3017965]
[1741542718497,1.40596915,555.39,554.55,0.3017965]
[1741542719195,1.71943607,555.38,554.55,0.3017965]
[1741542719495,0.31346692,555.38,554.55,0.3017965]
[1741542719687,0.637,555.45,554.55,0.3017965]
[1741542720193,0.637,555.45,554.56,0.3017965]
[1741542720492,0.31344856,555.44,554.57,0.3017965]
[1741542720694,0.31344856,555.44,554.58,0.3017965]
[1741542720892,0.31344856,555.44,554.59,0.3017965]
[1741542721092,0.637,555.45,554.6,0.3017965]
[1741542721288,0.637,555.45,554.61,0.3017965]
[1741542721592,0.31348527,555.44,554.62,0.3017965]
[1741542721792,1.72019508,555.44,554.63,0.3017965]
[1741542722093,0.31348527,555.44,554.64,0.3017965]
[1741542722595,0.31348527,555.44,554.65,0.3017965]
[1741542722791,0.31348527,555.44,554.55,0.3017965]
[1741542722993,0.31348527,555.44,554.56,0.3017965]
[1741542723289,0.31348527,555.44,554.54,0.36065928]
[1741542723494,0.31348527,555.44,554.55,0.30194593]
[1741542723989,1.4064972,555.43,554.55,0.30194593]
[1741542724197,0.31348527,555.44,554.55,0.30194593]
[1741542724798,0.31348527,555.44,554.56,0.30194593]
[1741542725100,0.31348527,555.44,554.57,0.30194593]
[1741542725292,0.31348527,555.44,554.58,0.30194593]
[1741542726891,0.31348527,555.44,554.59,0.30194593]
[1741542727092,0.637,555.45,554.55,0.30194593]
[1741542727296,0.31349092,555.43,554.56,0.30194593]
[1741542727598,0.31349092,555.43,554.57,0.30194593]
[1741542728093,0.31349092,555.43,554.54,0.36065928]
[1741542728293,1.40812802,555.42,554.55,0.30197867]
[1741542729098,1.40812802,555.41,554.55,0.30197867]
[1741542729497,1.10105075,555.4,554.55,0.30197867]
[1741542729699,1.10105075,555.39,554.55,0.30197867]
[1741542729899,1.10105075,555.38,554.55,0.30197867]
[1741542730100,2.50917877,555.37,554.55,0.30197867]
[1741542730301,1.10105075,555.36,554.55,0.30197867]
[1741542730601,4.76224033,555.35,554.55,0.30197867]
[1741542730894,2.86255178,555.34,554.55,0.30197867]
[1741542731094,1.10110748,555.33,554.55,0.30197867]
[1741542731295,1.10110748,555.32,554.55,0.30197867]
[1741542731602,1.10110748,555.31,554.55,0.30197867]
[1741542731801,1.10110748,555.3,554.55,0.30197867]
[1741542732002,1.10110748,555.29,554.55,0.30197867]
[1741542732202,1.10110748,555.28,554.55,0.30197867]
[1741542732399,1.10110748,555.27,554.55,0.30197867]
[1741542732603,1.10110748,555.26,554.55,0.30197867]
[1741542732901,4.76224033,555.25,554.55,0.30197867]
[1741542733101,2.86292992,555.24,554.55,0.30197867]
[1741542733302,3.40346469,555.23,554.55,0.30197867]
[1741542733602,3.40346978,555.22,554.55,0.30197867]
[1741542733803,2.86292992,555.21,554.55,0.30197867]
[1741542734005,2.86292992,555.2,554.55,0.30197867]
[1741542734206,3.66113285,555.23,554.55,0.30197867]
[1741542734404,3.66113285,555.19,554.55,0.30197867]
[1741542734603,3.40294526,555.18,554.54,0.36065928]
[1741542734803,3.40296185,555.17,554.54,0.36065928]
[1741542735103,3.66113285,555.19,554.54,0.36065928]
[1741542735104,8.82097448,555.16,554.54,0.36065928]
[1741542735300,5.15984163,555.15,554.54,0.36065928]
[1741542735602,5.15984163,555.14,553.46,1.329858]
[1741542735819,1.75348742,555.11,553.48,0.36135]
[1741542735998,4.61919176,555.1,553.49,0.30227766]
[1741542736198,1.75687978,555.09,553.5,0.30227766]
[1741542736403,1.04127833,555.02,553.51,0.30227766]
[1741542736606,1.04127833,554.98,553.52,0.30227766]
[1741542736804,1.04127833,554.96,553.53,0.30227766]
[1741542737105,1.75348742,554.9,553.54,0.30227766]
[1741542737301,2.85833953,554.89,553.55,0.30227766]
[1741542737501,2.85833953,554.88,553.55,0.30227766]
[1741542737707,2.85833953,554.87,553.56,0.30227766]
[1741542737903,8.81387119,554.86,553.57,0.30227766]
[1741542738106,5.41462027,554.86,553.49,0.30227766]
[1741542738299,3.39407484,554.85,553.49,0.30227766]
[1741542738506,3.39407484,554.84,553.49,0.30227766]
[1741542738806,3.39407484,554.83,553.49,0.30227766]
[1741542739004,5.14417975,554.82,553.49,0.30227766]
[1741542739207,10.55880002,554.81,553.49,0.30227766]
[1741542739513,5.14417975,554.8,553.49,0.30227766]
[1741542739709,6.45404528,554.81,553.49,0.30227766]
[1741542739710,1.03942501,554.75,553.49,0.30227766]
[1741542740001,3.39407484,554.74,553.49,0.30227766]
[1741542740209,1.75348742,554.63,553.49,0.30227766]
[1741542740406,2.85311323,554.62,553.49,0.30227766]
[1741542740607,3.39407484,554.61,553.49,0.30227766]
[1741542740803,3.39407484,554.6,553.49,0.30227766]
[1741542741003,5.10134623,557.79,553.48,0.36135]
[1741542741004,3.39407484,554.59,553.5,0.30254293]
[1741542741205,2.85311323,554.58,553.51,0.30254293]
[1741542741403,1.09735124,554.57,553.52,0.30254293]
[1741542741606,1.09735124,554.56,553.53,0.30254293]
[1741542741808,1.09735124,554.55,553.49,0.30254293]
[1741542742018,1.09735124,554.54,553.5,0.30254293]
[1741542742202,2.84506231,554.53,553.51,0.30254293]
[1741542742407,2.84506231,554.52,553.49,0.30254293]
[1741542742602,1.75348742,554.5,553.5,0.30254293]
[1741542742913,1.09735124,554.49,553.51,0.30254293]
[1741542743105,1.09735124,554.48,553.49,0.30254293]
[1741542743304,1.09735124,554.48,553.5,0.30254293]
[1741542743606,3.66113285,554.47,553.51,0.30254293]
[1741542743804,1.09735124,554.46,553.49,0.30254293]
[1741542744005,1.09735124,554.46,553.5,0.30254293]
[1741542744211,3.66113285,554.47,553.49,0.30254293]
[1741542744509,3.66113285,554.45,553.5,0.30254293]
[1741542744811,3.66113285,554.46,553.51,0.30254293]
[1741542745011,3.66113285,554.46,553.49,0.30254293]
[1741542745409,1.40812802,554.82,553.49,0.30254293]
[1741542745707,0.33157929,554.81,553.49,0.30254293]
[1741542745906,1.41896256,554.81,553.49,0.30254293]
[1741542746111,2.82709058,554.8,553.49,0.30254293]
[1741542746312,4.77667853,554.79,553.49,0.30254293]
[1741542746508,3.70018103,554.78,553.49,0.30254293]
[1741542746708,3.70018103,554.77,553.49,0.30254293]
[1741542747014,1.75348742,554.67,553.49,0.30254293]
[1741542747210,1.41901379,554.66,553.49,0.30254293]
[1741542747413,1.41901379,554.65,553.49,0.30254293]
[1741542747609,1.41901379,554.64,553.49,0.30254293]
[1741542747813,1.41901379,554.63,553.49,0.30254293]
[1741542748016,1.08738327,554.62,553.49,0.30254293]
[1741542748221,0.3316575,554.61,553.49,0.30254293]
[1741542748614,1.41572479,554.61,553.49,0.30254293]
[1741542748914,1.40812802,554.61,553.49,0.30254293]
[1741542749317,0.31407942,554.6,553.49,0.30254293]
[1741542750412,0.31407942,554.6,553.5,0.30254293]
[1741542750617,0.31407942,554.6,553.48,0.36135]
[1741542750618,0.31407942,554.6,553.51,0.30254293]
[1741542750817,0.31407942,554.6,553.52,0.30254293]
[1741542751114,0.31407942,554.6,553.53,0.30254293]
[1741542751516,0.31407942,554.6,553.49,0.30254293]
[1741542751813,0.31407942,554.6,553.5,0.30254293]
[1741542752118,0.31407942,554.6,553.51,0.30254293]
[1741542752317,0.31407942,554.6,553.49,0.30254293]
[1741542752517,3.66113285,554.59,553.5,0.30254293]
[1741542752717,3.66113285,554.59,553.49,0.30254293]
[1741542752920,3.66113285,554.59,553.5,0.30254293]
[1741542753121,3.66113285,554.59,553.51,0.30254293]
[1741542753327,1.40812802,554.58,553.49,0.30254293]
[1741542753517,1.08309667,554.57,553.48,0.36135]
[1741542753724,1.40812802,554.58,553.49,0.30256707]
[1741542754020,2.49126846,554.57,553.49,0.30256707]
[1741542754222,2.49126846,554.56,553.49,0.30256707]
[1741542754416,1.40812802,554.56,553.49,0.30256707]
[1741542754619,1.40812802,554.55,553.49,0.30256707]
[1741542755022,1.40812802,554.55,553.5,0.30256707]
[1741542755218,1.40812802,554.59,553.51,0.30256707]
[1741542755418,1.40812802,554.59,553.52,0.30256707]
[1741542755615,1.40812802,554.59,553.53,0.30256707]
[1741542755816,1.40812802,554.59,553.54,0.30256707]
[1741542756119,1.40812802,554.58,553.55,0.30256707]
[1741542756323,0.31407942,554.6,553.49,0.30256707]
[1741542756517,0.31407942,554.6,553.5,0.30256707]
[1741542756723,0.31407942,554.6,553.49,0.30256707]
[1741542756923,0.31407942,554.6,553.5,0.30256707]
[1741542757123,1.40812802,554.67,553.49,0.30256707]
[1741542757326,0.848,554.59,553.5,0.30256707]
[1741542757624,0.848,554.59,553.51,0.30256707]
[1741542757928,0.848,554.59,553.52,0.30256707]
[1741542758124,0.848,554.59,553.49,0.30256707]
[1741542758324,0.31403691,554.58,553.5,0.30256707]
[1741542758525,0.31403691,554.58,553.49,0.30256707]
[1741542758721,0.31403691,554.58,553.5,0.30246033]
[1741542758923,0.31403691,554.58,553.51,0.30246092]
[1741542759118,0.31403691,554.58,553.49,0.30246092]
[1741542759320,0.31403691,554.58,553.52,0.30246092]
[1741542759523,0.31403691,554.58,553.53,0.30246092]
[1741542759724,0.31403691,554.58,553.49,0.30246092]
[1741542759926,1.40812802,554.57,553.5,0.30246092]
[1741542760226,1.40812802,554.57,553.51,0.30246092]
[1741542760427,1.40812802,554.56,553.48,0.36135]
[1741542760651,1.40812802,554.56,553.49,0.30253245]
[1741542761331,1.70288041,554.55,553.49,0.30253245]
[1741542761926,0.711,554.54,553.49,0.30253245]
[1741542763627,1.3888024,554.53,553.49,0.30253245]
[1741542764227,1.702896,554.52,553.5,0.30258052]
[1741542764527,2.20944645,554.51,553.51,0.30258052]
[1741542764725,2.20944645,554.51,553.49,0.30258052]
[1741542764921,2.20944645,554.51,553.5,0.30258052]
[1741542765225,3.61088624,554.5,553.51,0.30258052]
[1741542765427,3.61088624,554.5,553.52,0.30258052]
[1741542765625,1.08982096,554.49,553.53,0.30258052]
[1741542765823,3.61088624,554.5,553.49,0.30258052]
[1741542766022,3.61088624,554.49,553.5,0.30258052]
[1741542766226,3.61088624,554.49,553.49,0.30258052]
[1741542766430,3.61088624,554.49,553.5,0.30258052]
[1741542766628,4.22329026,554.48,553.49,0.30258052]
[1741542766927,6.4453741,554.47,553.5,0.36133694]
[1741542767122,2.83448097,554.46,553.51,0.30258052]
[1741542767327,1.09002308,554.45,553.51,0.30258052]
[1741542767627,3.61088624,554.45,553.51,0.30258052]
[1741542767826,1.09002308,554.46,553.51,0.30258052]
[1741542767827,6.98725894,554.44,553.51,0.30258052]
[1741542768021,3.3763727,554.43,553.51,0.30258052]
[1741542768221,1.09002308,554.42,553.51,0.30258052]
[1741542768423,1.09002308,554.41,553.51,0.30258052]
[1741542768728,1.09002308,554.4,553.51,0.30258052]
[1741542768929,1.09002308,554.39,553.51,0.30258052]
[1741542769129,3.61088624,554.39,553.52,0.36132389]
[1741542769330,1.09002308,554.38,553.53,0.30258052]
[1741542769523,2.83535242,554.38,553.53,0.36131736]
[1741542769732,4.70090932,554.37,553.54,0.30266288]
[1741542769931,1.09002308,554.36,553.54,0.30266288]
[1741542770125,6.44651524,554.36,553.54,0.30266288]
[1741542770325,1.09002308,554.35,553.54,0.30266288]
[1741542770526,1.09002308,554.34,553.54,0.30266288]
[1741542770726,1.09145338,554.33,553.54,0.30266288]
[1741542771033,4.70233962,554.33,553.54,0.30266288]
[1741542771334,4.70233962,554.32,553.55,0.30266702]
[1741542771630,4.70233962,554.32,553.53,0.36131736]
[1741542771631,1.09145338,554.31,553.53,0.36131736]
[1741542771826,1.09145338,554.3,553.53,0.36131736]
[1741542772032,1.09145338,554.29,553.53,0.36131736]
[1741542772232,1.09145338,554.28,553.53,0.36131736]
[1741542772426,1.09145338,554.27,553.53,0.36131736]
[1741542772625,1.09145338,554.26,553.53,0.36131736]
[1741542772826,1.09145338,554.25,553.53,0.36131736]
[1741542773047,1.09145338,554.24,553.53,0.36131736]
[1741542773332,3.61088624,554.25,553.54,0.30265702]
[1741542773633,1.3888024,554.23,553.54,0.30265702]
[1741542774432,0.975,554.27,553.54,0.30265702]
[1741542775129,0.975,554.27,553.55,0.30250973]
[1741542775331,0.975,554.27,553.53,0.36131736]
[1741542775332,0.975,554.27,553.54,0.30250973]
[1741542775533,0.975,554.27,553.55,0.30250973]
[1741542775734,0.975,554.27,553.53,0.36131736]
[1741542775735,0.975,554.27,553.54,0.30250973]
[1741542775929,0.31412904,554.26,553.55,0.30250973]
[1741542776134,0.31412904,554.26,553.54,0.30250973]
[1741542776334,1.40182374,554.25,553.55,0.30250973]
[1741542776534,1.40182374,554.25,553.54,0.30250973]
[1741542776728,1.40182374,554.25,553.56,0.30250973]
[1741542776928,0.31412904,554.26,553.57,0.30250973]
[1741542777234,0.31412904,554.26,553.58,0.30250973]
[1741542777433,0.31412904,554.26,553.54,0.30250973]
[1741542777633,0.31412904,554.26,553.55,0.30250973]